fUSD/lending_fUSD_20250226
["ID","MTS","AMOUNT","RATE_DAILY","PERIOD"]
[354513476,1740545446677,-1877.79,0.00045686,120]
[354513478,1740545446686,-565.85,0.00045686,120]
[354513480,1740545446696,-3197.85,0.00045686,120]
[354513482,1740545446705,-500.0,0.00045686,2]
[354513484,1740545446715,-2250.79,0.00045686,120]
[354513486,1740545446724,-471.38755828,0.00045686,120]
[354513488,1740545446733,-3147.55,0.00045686,120]
[354513490,1740545446743,-500.0,0.00045686,120]
[354513492,1740545446752,-454.98110996,0.00045686,120]
[354513494,1740545446761,-1894.03,0.00045686,120]
[354513496,1740545446771,-500.0,0.00045686,120]
[354513498,1740545446781,-500.0,0.00045686,120]
[354513500,1740545446790,-500.0,0.00045686,120]
[354513502,1740545446799,-1616.86,0.00045686,120]
[354513504,1740545446809,-3046.88,0.00045686,120]
[354513506,1740545446818,-1957.29,0.00045686,120]
[354513508,1740545446827,-1036.03,0.00045686,120]
[354513510,1740545446837,-498.50580441,0.00045686,120]
[354513512,1740545446846,-500.0,0.00045686,120]
[354513514,1740545446856,-1813.74,0.00045686,120]
[354513516,1740545446865,-2700.49,0.00045686,120]
[354513518,1740545446874,-498.57056652,0.00045686,120]
[354513520,1740545446884,-1411.07,0.00045686,120]
[354513522,1740545446898,-509.37470009,0.00045686,120]
[354513524,1740545446907,-1695.77,0.00045686,120]
[354513526,1740545446917,-981.45,0.00045686,120]
[354513528,1740545446926,-613.72174783,0.00045686,120]
[354513530,1740545446935,-1261.06,0.00045686,120]
[354513532,1740545446944,-498.69336866,0.00045686,120]
[354513534,1740545446954,-1109.07,0.00045686,120]
[354513536,1740545446964,-320.52724045,0.00045686,120]
[354513538,1740545446974,-2943.14,0.00045686,120]
[354513539,1740545446983,-4113.4,0.00045686,120]
[354513541,1740545446993,-2041.93,0.00045686,120]
[354513544,1740545447002,-983.57,0.00045686,30]
[354513545,1740545447011,-1935.59,0.00045686,120]
[354513548,1740545447021,-670.921235,0.00045686,120]
[354513550,1740545447030,-1383.77,0.00045686,120]
[354513552,1740545447039,-1091.59,0.00045686,120]
[354513553,1740545447048,-3257.86,0.00045686,120]
[354513555,1740545447058,-1769.404584,0.00045686,120]
[354513557,1740545447067,-941.96,0.00045686,120]
[354513559,1740545447076,-500.0,0.00045686,120]
[354513561,1740545447085,-1035.3,0.00045686,120]
[354513563,1740545447094,-1260.35,0.00045686,120]
[354513565,1740545447104,-546.26,0.00045686,120]
[354513568,1740545447113,-500.0,0.00045686,120]
[354513570,1740545447123,-581.93,0.00045686,120]
[354513572,1740545447133,-663.97,0.00045686,120]
[354513574,1740545447143,-840.65,0.00045686,120]
[354513576,1740545447154,-1677.04,0.00045686,120]
[354513578,1740545447163,-1758.42,0.00045686,120]
[354513579,1740545447172,-1761.08,0.00045686,120]
[354513581,1740545447181,-215.92650591,0.00045686,120]
[354513584,1740545447191,-3731.68,0.00045686,120]
[354513586,1740545447201,-1278.59,0.00045686,120]
[354513588,1740545447210,-1836.56,0.00045686,120]
[354513590,1740545447220,-370.99676826,0.00045686,120]
[354513592,1740545447229,-2130.86,0.00045686,120]
[354513594,1740545447238,-151.0,0.00045686,14]
[354513596,1740545447247,-500.0,0.00045686,120]
[354513598,1740545447256,-518.16118179,0.00045686,120]
[354513600,1740545447266,-598.26,0.00045686,120]
[354513602,1740545447275,-3078.46,0.00045686,120]
[354513604,1740545447285,-503.35636494,0.00045686,120]
[354513606,1740545447294,-2144.75,0.00045686,120]
[354513608,1740545447303,-1512.01,0.00045686,120]
[354513610,1740545447316,-1482.84,0.00045686,120]
[354513612,1740545447326,-498.0268334,0.00045686,120]
[354513614,1740545447335,-2000.0,0.00045686,120]
[354513616,1740545447344,-2052.78,0.00045686,120]
[354513617,1740545447353,-1181.77,0.00045686,120]
[354513619,1740545447362,-1717.29,0.00045686,60]
[354513622,1740545447371,-2385.7,0.00045686,120]
[354513624,1740545447381,-3345.39,0.00045686,120]
[354513626,1740545447391,-7791.78,0.00045686,120]
[354513628,1740545447400,-500.0,0.00045686,120]
[354513629,1740545447409,-3575.37,0.00045686,120]
[354513630,1740545447418,-1379.73,0.00045686,120]
[354513631,1740545447427,-4638.55,0.00045686,120]
[354513632,1740545447436,-2301.34,0.00045686,120]
[354513633,1740545447445,-2789.06,0.00045686,120]
[354513634,1740545447454,-3227.42,0.00045686,120]
[354513635,1740545447462,-1147.6,0.00045686,120]
[354513636,1740545447471,-2167.87,0.00045686,120]
[354513637,1740545447480,-152.117436,0.00045686,14]
[354513638,1740545447490,-4540.32,0.00045686,120]
[354513639,1740545447499,-2139.7,0.00045686,120]
[354513640,1740545447508,-2726.59,0.00045686,120]
[354513641,1740545447517,-3403.22,0.00045686,120]
[354513642,1740545447526,-5478.32,0.00045686,120]
[354513643,1740545447535,-2101.74,0.00045686,120]
[354513644,1740545447544,-1047.25,0.00045686,2]
[354513652,1740545447633,-500.0,0.00045686,120]
[354513654,1740545447643,-1473.27,0.00045686,120]
[354513656,1740545447653,-5925.64,0.00045686,120]
[354513658,1740545447662,-500.0,0.00045686,120]
[354513660,1740545447671,-507.22366721,0.00045686,120]
[354513662,1740545447680,-1693.11,0.00045686,120]
[354513664,1740545447690,-1682.93,0.00045686,120]
[354513666,1740545447699,-6304.46,0.00045686,120]
[354513668,1740545447708,-7256.93,0.00045686,120]
[354513670,1740545447717,-500.0,0.00045686,120]
[354513672,1740545447726,-151.0,0.00045686,14]
[354513674,1740545447735,-151.0,0.00045686,14]
[354513676,1740545447744,-151.0,0.00045686,14]
[354513678,1740545447753,-151.0,0.00045686,14]
[354513680,1740545447762,-1319.93,0.00045686,120]
[354513682,1740545447771,-4857.22,0.00045686,120]
[354513684,1740545447781,-16021.01,0.00045686,120]
[354513686,1740545447790,-5756.45,0.00045686,120]
[354513688,1740545447799,-500.0,0.00045686,120]
[354513690,1740545447808,-3583.7,0.00045686,120]
[354513692,1740545447817,-4153.87,0.00045686,120]
[354513694,1740545447827,-8351.68,0.00045686,120]
[354513696,1740545447836,-1059.87,0.00045686,120]
[354513698,1740545447845,-3052.88,0.00045686,120]
[354513700,1740545447854,-4793.74,0.00045686,120]
[354513702,1740545447863,-6352.52,0.00045686,120]
[354513704,1740545447872,-2039.49,0.00045686,120]
[354513706,1740545447882,-6106.35,0.00045686,120]
[354513708,1740545447894,-1353.62,0.00045686,120]
[354513710,1740545447903,-3246.55,0.00045686,120]
[354513712,1740545447912,-151.0,0.00045686,14]
[354513714,1740545447921,-776.6,0.00045686,120]
[354513716,1740545447930,-151.0,0.00045686,14]
[354513717,1740545447940,-151.0,0.00045686,14]
[354513719,1740545447949,-6281.65,0.00045686,120]
[354513721,1740545447958,-5353.64,0.00045686,120]
[354513723,1740545447967,-3262.98,0.00045686,120]
[354513726,1740545447977,-4677.05,0.00045686,120]
[354513728,1740545447986,-1402.85,0.00045686,120]
[354513730,1740545447994,-5612.15,0.00045686,120]
[354513731,1740545448003,-4366.36,0.00045686,120]
[354513733,1740545448012,-151.0,0.00045686,14]
[354513735,1740545448022,-151.0,0.00045686,14]
[354513737,1740545448031,-151.0,0.00045686,14]
[354513739,1740545448040,-3202.0,0.00045686,120]
[354513741,1740545448049,-12144.92,0.00045686,100]
[354513743,1740545448058,-3076.26,0.00045686,120]
[354513745,1740545448067,-5588.16,0.00045686,120]
[354513747,1740545448076,-794.97,0.00045686,120]
[354513749,1740545448086,-1408.53,0.00045686,120]
[354513751,1740545448095,-500.0,0.00045686,90]
[354513753,1740545448104,-947.63,0.00045686,120]
[354513755,1740545448113,-254.640619,0.00045686,14]
[354513757,1740545448122,-254.640619,0.00045686,14]
[354513759,1740545448131,-500.0,0.00045686,120]
[354513761,1740545448141,-254.640619,0.00045686,14]
[354513763,1740545448152,-254.640619,0.00045686,14]
[354513765,1740545448161,-254.640619,0.00045686,14]
[354513767,1740545448171,-1012.99,0.00045686,120]
[354513769,1740545448180,-254.640619,0.00045686,14]
[354513771,1740545448190,-1985.29,0.00045686,120]
[354513773,1740545448199,-6511.59,0.00045686,120]
[354513775,1740545448208,-2592.27,0.00045686,120]
[354513777,1740545448217,-1903.39,0.00045686,120]
[354513779,1740545448226,-2346.42,0.00045686,120]
[354513782,1740545448244,-500.0,0.00045686,120]
[354513784,1740545448253,-6950.95,0.00045686,120]
[354513786,1740545448262,-2786.95,0.00045686,120]
[354513788,1740545448275,-474.01248048,0.00045686,7]
[354513790,1740545448284,-2355.88,0.00045686,120]
[354513792,1740545448294,-4048.09,0.00045686,120]
[354513794,1740545448303,-166.519535,0.00045686,14]
[354513796,1740545448313,-166.519535,0.00045686,14]
[354513798,1740545448321,-500.0,0.00045686,120]
[354513800,1740545448330,-166.519535,0.00045686,14]
[354513802,1740545448341,-166.519535,0.00045686,14]
[354513804,1740545448352,-166.519535,0.00045686,14]
[354513806,1740545448361,-166.519535,0.00045686,14]
[354513808,1740545448370,-500.0,0.00045686,120]
[354513810,1740545448379,-2776.37,0.00045686,30]
[354513812,1740545448389,-696.24,0.00045686,120]
[354513815,1740545448399,-2454.63,0.00045686,120]
[354513816,1740545448408,-4711.74,0.00045686,120]
[354513818,1740545448418,-500.0,0.00045686,120]
[354513820,1740545448427,-500.0,0.00045686,120]
[354513823,1740545448436,-612.89,0.00045686,120]
[354513824,1740545448445,-500.0,0.00045686,120]
[354513827,1740545448455,-500.0,0.00045686,120]
[354513828,1740545448464,-502.16539604,0.00045686,25]
[354513830,1740545448473,-2642.56,0.00045686,120]
[354513833,1740545448482,-3387.36,0.00045686,120]
[354513834,1740545448491,-3556.25,0.00045686,120]
[354513836,1740545448501,-165.36472448,0.00045686,120]
[354513838,1740545448511,-500.0,0.00045686,120]
[354513841,1740545448520,-1094.95,0.00045686,120]
[354513843,1740545448529,-3964.2,0.00045686,120]
[354513844,1740545448539,-4159.81,0.00045686,120]
[354513846,1740545448548,-9845.82,0.00045686,120]
[354513849,1740545448557,-4619.88,0.00045686,120]
[354513851,1740545448567,-500.0,0.00045686,120]
[354513852,1740545448576,-826.31,0.00045686,120]
[354513855,1740545448586,-1440.55,0.00045686,7]
[354513857,1740545448596,-2426.88,0.00045686,120]
[354513859,1740545448607,-500.0,0.00045686,120]
[354513860,1740545448616,-500.0,0.00045687,120]
[354513862,1740545448626,-748.15,0.00045687,120]
[354513864,1740545448636,-1188.93,0.00045687,120]
[354513866,1740545448645,-1127.18,0.00045687,120]
[354513868,1740545448655,-500.0,0.00045687,120]
[354513871,1740545448664,-500.0,0.00045687,120]
[354513873,1740545448674,-500.0,0.00045687,120]
[354513874,1740545448683,-500.0,0.00045687,120]
[354513877,1740545448692,-842.82,0.00045687,120]
[354513878,1740545448702,-998.2,0.00045687,120]
[354513881,1740545448711,-500.0,0.00045687,120]
[354513883,1740545448720,-500.0,0.00045687,120]
[354513884,1740545448730,-944.51,0.00045687,120]
[354513886,1740545448739,-500.0,0.00045687,120]
[354513889,1740545448749,-1005.61,0.00045687,120]
[354513891,1740545448758,-500.0,0.00045687,120]
[354513893,1740545448767,-576.92,0.00045687,120]
[354513894,1740545448777,-500.0,0.00045687,120]
[354513896,1740545448786,-1765.22,0.00045687,120]
[354513899,1740545448796,-732.19,0.00045687,40]
[354513900,1740545448805,-554.57,0.00045687,120]
[354513902,1740545448814,-500.0,0.00045687,120]
[354513904,1740545448823,-500.0,0.00045687,120]
[354513906,1740545448833,-500.0,0.00045687,120]
[354513908,1740545448843,-510.74,0.00045687,120]
[354513910,1740545448852,-588.82,0.00045687,120]
[354513912,1740545448861,-500.0,0.00045687,120]
[354513914,1740545448871,-500.0,0.00045687,120]
[354513916,1740545448880,-1088.82,0.00045687,120]
[354513919,1740545448892,-500.0,0.00045687,120]
[354513920,1740545448901,-500.0,0.00045687,120]
[354513923,1740545448911,-785.32,0.00045687,120]
[354513925,1740545448920,-303.5889765,0.00045687,120]
[354513927,1740545448931,-1056.21,0.00045687,120]
[354513929,1740545448939,-919.11,0.00045687,120]
[354513931,1740545448949,-775.2,0.00045687,120]
[354513933,1740545448957,-1082.79,0.00045687,120]
[354513935,1740545448967,-1295.05,0.00045687,120]
[354513936,1740545448977,-500.0,0.00045687,120]
[354513938,1740545448986,-503.02300826,0.00045687,120]
[354513940,1740545448995,-500.0,0.00045687,120]
[354513943,1740545449004,-502.3879005,0.00045687,120]
[354513944,1740545449014,-1232.32,0.00045687,120]
[354513946,1740545449024,-506.75051748,0.00045687,120]
[354513948,1740545449033,-743.71,0.00045687,120]
[354513951,1740545449043,-1447.18,0.00045687,120]
[354513953,1740545449052,-503.55789331,0.00045687,120]
[354513954,1740545449062,-500.0,0.00045687,120]
[354513956,1740545449071,-625.53321038,0.00045687,120]
[354513958,1740545449081,-1157.59,0.00045687,120]
[354513960,1740545449091,-521.92478784,0.00045687,120]
[354513963,1740545449100,-526.25,0.00045687,120]
[354513964,1740545449109,-388.17016517,0.00045687,120]
[354513967,1740545449118,-950.62,0.00045687,120]
[354513969,1740545449130,-500.0,0.00045687,120]
[354513971,1740545449139,-500.0,0.00045687,120]
[354513973,1740545449148,-500.0,0.00045687,120]
[354513975,1740545449157,-616.88,0.00045687,120]
[354513977,1740545449166,-518.16,0.00045687,120]
[354513979,1740545449175,-1858.61,0.00045687,120]
[354513981,1740545449184,-501.12434155,0.00045687,120]
[354513983,1740545449193,-500.0,0.00045687,120]
[354513985,1740545449202,-500.0,0.00045687,120]
[354513986,1740545449211,-500.0,0.00045687,120]
[354513988,1740545449220,-1050.33,0.00045687,120]
[354513990,1740545449229,-506.42824495,0.00045687,120]
[354513992,1740545449238,-906.95,0.00045687,120]
[354513994,1740545449247,-500.0,0.00045687,120]
[354513996,1740545449256,-502.06959216,0.00045687,120]
[354513998,1740545449265,-502.50289758,0.00045687,120]
[354514000,1740545449274,-684.12,0.00045687,120]
[354514002,1740545449283,-500.0,0.00045687,120]
[354514004,1740545449292,-855.57,0.00045687,120]
[354514006,1740545449301,-1269.04,0.00045687,120]
[354514008,1740545449310,-500.0,0.00045687,120]
[354514011,1740545449320,-593.5980901,0.00045687,120]
[354514012,1740545449329,-505.20605714,0.00045687,120]
[354514014,1740545449339,-500.0,0.00045687,120]
[354514017,1740545449348,-1244.97,0.00045687,120]
[354514018,1740545449357,-1766.01,0.00045687,120]
[354514021,1740545449366,-503.29490139,0.00045687,120]
[354514022,1740545449375,-503.13581409,0.00045687,120]
[354514024,1740545449385,-500.0,0.00045687,120]
[354514027,1740545449395,-566.48,0.00045687,120]
[354514029,1740545449404,-500.0,0.00045687,120]
[354514031,1740545449414,-500.0,0.00045687,120]
[354514033,1740545449424,-501.47930619,0.00045687,120]
[354514035,1740545449433,-500.0,0.00045687,30]
[354514036,1740545449442,-614.5,0.00045687,120]
[354514039,1740545449452,-636.63,0.00045687,120]
[354514040,1740545449461,-1537.76,0.00045687,120]
[354514042,1740545449470,-556.09,0.00045687,120]
[354514044,1740545449480,-1561.04,0.00045687,120]
[354514046,1740545449489,-167.27327464,0.00045687,120]
[354514048,1740545449498,-635.65,0.00045687,120]
[354514050,1740545449507,-500.0,0.00045687,120]
[354514052,1740545449516,-1886.85,0.00045687,120]
[354514054,1740545449525,-502.11142327,0.00045687,120]
[354514056,1740545449535,-720.46,0.00045687,120]
[354514059,1740545449544,-280.12193325,0.00045687,120]
[354514061,1740545449554,-500.04,0.00045687,120]
[354514063,1740545449563,-1597.65,0.00045687,120]
[354514064,1740545449572,-501.80013821,0.00045687,120]
[354514067,1740545449581,-561.48,0.00045687,120]
[354514069,1740545449591,-500.0,0.00045687,120]
[354514070,1740545449600,-2032.11,0.00045687,120]
[354514072,1740545449609,-500.0,0.00045687,120]
[354514074,1740545449619,-500.0,0.00045687,120]
[354514076,1740545449628,-500.0,0.00045687,120]
[354514078,1740545449637,-2501.68,0.00045687,120]
[354514081,1740545449646,-1468.08,0.00045687,120]
[354514082,1740545449655,-506.44785031,0.00045687,120]
[354514084,1740545449664,-500.0,0.00045687,120]
[354514086,1740545449673,-500.0,0.00045687,120]
[354514088,1740545449683,-1156.14,0.00045687,120]
[354514090,1740545449691,-500.0,0.00045687,120]
[354514092,1740545449700,-500.0,0.00045687,120]
[354514094,1740545449709,-500.0,0.00045687,120]
[354514096,1740545449719,-500.0,0.00045687,120]
[354514099,1740545449728,-1185.28,0.00045687,120]
[354514101,1740545449738,-1781.57,0.00045687,120]
[354514102,1740545449747,-998.56,0.00045687,120]
[354514105,1740545449756,-500.0,0.00045687,120]
[354514107,1740545449765,-500.0,0.00045687,120]
[354514109,1740545449775,-500.0,0.00045687,120]
[354514110,1740545449785,-500.0,0.00045687,120]
[354514112,1740545449793,-2103.13,0.00045687,120]
[354514114,1740545449803,-2005.72,0.00045687,120]
[354514116,1740545449811,-1520.23,0.00045687,120]
[354514118,1740545449820,-804.58,0.00045687,120]
[354514120,1740545449829,-1705.14,0.00045687,120]
[354514122,1740545449839,-747.32,0.00045687,120]
[354514124,1740545449848,-500.0,0.00045687,120]
[354514126,1740545449857,-500.0,0.00045687,120]
[354514128,1740545449866,-1930.63,0.00045687,120]
[354514130,1740545449875,-3056.87,0.00045687,120]
[354514133,1740545449885,-2023.7,0.00045687,120]
[354514134,1740545449898,-500.0,0.00045687,120]
[354514136,1740545449907,-1399.86,0.00045687,120]
[354514138,1740545449916,-812.2,0.00045687,120]
[354514141,1740545449926,-1818.25,0.00045687,120]
[354514142,1740545449936,-500.0,0.00045687,120]
[354514144,1740545449945,-500.0,0.00045687,120]
[354514146,1740545449955,-500.0,0.00045687,120]
[354514149,1740545449965,-500.0,0.00045687,120]
[354514151,1740545449975,-500.0,0.00045687,120]
[354514152,1740545449984,-2007.89,0.00045687,120]
[354514154,1740545449993,-500.0,0.00045687,120]
[354514156,1740545450002,-3494.8,0.00045687,120]
[354514158,1740545450011,-500.0,0.00045687,120]
[354514160,1740545450020,-500.0,0.00045687,120]
[354514162,1740545450029,-500.0,0.00045687,120]
[354514164,1740545450040,-500.0,0.00045687,120]
[354514166,1740545450049,-662.9,0.00045687,120]
[354514168,1740545450059,-2865.32,0.00045687,120]
[354514170,1740545450068,-735.22,0.00045687,120]
[354514172,1740545450077,-756.25,0.00045687,120]
[354514174,1740545450086,-500.0,0.00045687,120]
[354514175,1740545450095,-965.85,0.00045687,120]
[354514176,1740545450104,-944.55,0.00045687,120]
[354514177,1740545450113,-500.0,0.00045687,120]
[354514178,1740545450122,-151.0,0.00045687,14]
[354514179,1740545450131,-3710.78,0.00045687,120]
[354514180,1740545450143,-500.0,0.00045687,7]
[354514181,1740545450152,-500.0,0.00045687,120]
[354514183,1740545450161,-500.0,0.00045687,120]
[354514185,1740545450170,-273.85832,0.00045687,14]
[354514187,1740545450179,-500.0,0.00045687,120]
[354514189,1740545450188,-500.0,0.00045687,120]
[354514190,1740545450198,-809.07,0.00045687,120]
[354514191,1740545450207,-2004.92,0.00045687,120]
[354514192,1740545450217,-1602.06,0.00045687,120]
[354514193,1740545450226,-506.05529541,0.00045687,120]
[354514194,1740545450235,-1644.31,0.00045687,120]
[354514195,1740545450244,-1112.18,0.00045687,120]
[354514196,1740545450255,-2459.71,0.00045687,120]
[354514197,1740545450264,-500.0,0.00045687,120]
[354514198,1740545450273,-1105.27,0.00045687,120]
[354514199,1740545450282,-1096.73,0.00045687,120]
[354514200,1740545450291,-2864.87,0.00045687,120]
[354514201,1740545450301,-700.64,0.00045687,60]
[354514202,1740545450309,-1190.31,0.00045687,120]
[354514203,1740545450318,-500.0,0.00045687,120]
[354514204,1740545450327,-533.48,0.00045687,120]
[354514205,1740545450336,-1295.7,0.00045687,120]
[354514206,1740545450346,-500.0,0.00045687,120]
[354514207,1740545450355,-2861.7,0.00045687,120]
[354514208,1740545450365,-943.82,0.00045687,120]
[354514209,1740545450374,-972.27,0.00045687,120]
[354514210,1740545450383,-1128.35,0.00045687,120]
[354514211,1740545450392,-500.0,0.00045687,120]
[354514212,1740545450401,-2384.67,0.00045687,120]
[354514213,1740545450410,-978.13,0.00045687,120]
[354514214,1740545450419,-500.0,0.00045687,120]
[354514215,1740545450428,-657.55,0.00045687,120]
[354514216,1740545450438,-500.0,0.00045687,120]
[354514217,1740545450447,-1783.05,0.00045687,120]
[354514218,1740545450457,-601.41,0.00045687,120]
[354514219,1740545450466,-1706.69,0.00045687,120]
[354514220,1740545450475,-1972.72,0.00045687,120]
[354514221,1740545450484,-787.87,0.00045687,120]
[354514222,1740545450493,-1647.98,0.00045687,120]
[354514223,1740545450502,-3098.47,0.00045687,120]
[354514224,1740545450511,-593.3,0.00045687,120]
[354514225,1740545450521,-1556.84,0.00045687,120]
[354514226,1740545450530,-587.7909024,0.00045687,120]
[354514227,1740545450540,-2066.51,0.00045687,120]
[354514228,1740545450549,-500.0,0.00045687,120]
[354514229,1740545450558,-500.0,0.00045687,120]
[354514230,1740545450567,-2408.72,0.00045687,120]
[354514231,1740545450576,-1412.0,0.00045687,120]
[354514232,1740545450585,-1794.9,0.00045687,120]
[354514233,1740545450595,-1787.84,0.00045687,120]
[354514234,1740545450604,-500.0,0.00045687,120]
[354514235,1740545450613,-500.0,0.00045687,120]
[354514236,1740545450622,-904.93,0.00045687,120]
[354514237,1740545450631,-500.0,0.00045687,120]
[354514238,1740545450641,-1301.4,0.00045687,120]
[354514239,1740545450650,-706.85,0.00045687,120]
[354514240,1740545450659,-3485.96,0.00045687,120]
[354514241,1740545450668,-500.0,0.00045687,120]
[354514242,1740545450677,-500.0,0.00045687,120]
[354514243,1740545450686,-500.0,0.00045687,120]
[354514244,1740545450695,-2339.19,0.00045687,120]
[354514245,1740545450705,-1937.92,0.00045687,120]
[354514246,1740545450721,-1806.73,0.00045687,120]
[354514247,1740545450731,-828.54,0.00045687,120]
[354514248,1740545450740,-500.0,0.00045687,120]
[354514249,1740545450750,-500.0,0.00045687,120]
[354514250,1740545450759,-1400.12,0.00045687,120]
[354514251,1740545450768,-2594.92,0.00045687,120]
[354514252,1740545450778,-500.0,0.00045687,120]
[354514253,1740545450788,-703.54,0.00045687,120]
[354514254,1740545450797,-1265.9,0.00045687,120]
[354514255,1740545450806,-1804.4,0.00045687,120]
[354514256,1740545450816,-1287.41,0.00045687,120]
[354514257,1740545450825,-2329.71,0.00045687,120]
[354514258,1740545450834,-749.86,0.00045687,120]
[354514259,1740545450844,-222.77664334,0.00045687,120]
[354514260,1740545450854,-700.47,0.00045687,120]
[354514261,1740545450863,-617.73133248,0.00045687,120]
[354514262,1740545450873,-2302.07,0.00045687,120]
[354514263,1740545450882,-500.0,0.00045687,120]
[354514264,1740545450896,-500.0,0.00045687,120]
[354514265,1740545450907,-1084.41,0.00045687,120]
[354514266,1740545450918,-500.0,0.00045687,120]
[354514267,1740545450930,-500.0,0.00045687,120]
[354514268,1740545450940,-2277.44,0.00045687,120]
[354514269,1740545450950,-500.0,0.00045687,120]
[354514270,1740545450959,-1443.45,0.00045687,120]
[354514271,1740545450969,-500.0,0.00045687,120]
[354514272,1740545450979,-500.0,0.00045687,120]
[354514273,1740545450988,-507.94,0.00045687,120]
[354514274,1740545450998,-500.0,0.00045687,120]
[354514275,1740545451007,-500.0,0.00045687,120]
[354514276,1740545451023,-1333.98,0.00045687,120]
[354514277,1740545451034,-1476.8,0.00045687,120]
[354514278,1740545451044,-500.0,0.00045687,120]
[354514279,1740545451055,-607.8,0.00045687,120]
[354514280,1740545451065,-663.81,0.00045687,120]
[354514281,1740545451075,-937.52,0.00045687,120]
[354514282,1740545451085,-1782.19,0.00045687,120]
[354514283,1740545451096,-541.35,0.00045687,120]
[354514284,1740545451107,-2069.36,0.00045687,120]
[354514285,1740545451117,-1014.83,0.00045687,120]
[354514286,1740545451127,-404.74328698,0.00045687,120]
[354514287,1740545451137,-1608.91,0.00045687,120]
[354514288,1740545451147,-584.69,0.00045687,120]
[354514289,1740545451156,-701.73,0.00045687,120]
[354514290,1740545451166,-1794.65,0.00045687,120]
[354514291,1740545451176,-1004.93,0.00045687,120]
[354514292,1740545451186,-1623.34,0.00045687,120]
[354514293,1740545451195,-715.2,0.00045687,120]
[354514294,1740545451205,-770.6,0.00045687,120]
[354514295,1740545451215,-151.0,0.00045687,14]
[354514296,1740545451226,-151.0,0.00045687,14]
[354514297,1740545451235,-151.0,0.00045687,14]
[354514298,1740545451245,-213.779871,0.00045687,14]
[354514299,1740545451254,-2381.2,0.00045687,120]
[354514300,1740545451264,-500.0,0.00045687,120]
[354514301,1740545451273,-3218.67,0.00045687,120]
[354514302,1740545451283,-500.0,0.00045687,120]
[354514303,1740545451293,-1213.2,0.00045687,120]
[354514304,1740545451303,-3535.96,0.00045687,120]
[354514305,1740545451313,-1365.77,0.00045687,120]
[354514306,1740545451329,-1094.81,0.00045687,120]
[354514307,1740545451340,-151.0,0.00045687,14]
[354514308,1740545451350,-151.0,0.00045687,14]
[354514309,1740545451360,-613.96,0.00045687,120]
[354514310,1740545451370,-1736.75,0.00045687,120]
[354514311,1740545451380,-819.34,0.00045687,120]
[354514312,1740545451390,-151.0,0.00045687,14]
[354514313,1740545451400,-151.0,0.00045687,14]
[354514314,1740545451411,-463.32785092,0.00045687,120]
[354514315,1740545451421,-500.0,0.00045687,120]
[354514316,1740545451431,-1191.64,0.00045687,120]
[354514317,1740545451441,-1838.84,0.00045687,120]
[354514318,1740545451450,-254.640619,0.00045687,14]
[354514319,1740545451459,-254.640619,0.00045687,14]
[354514320,1740545451469,-254.640619,0.00045687,14]
[354514321,1740545451479,-1998.26,0.00045687,120]
[354514322,1740545451489,-254.640619,0.00045687,14]
[354514323,1740545451499,-500.0,0.00045687,120]